fUST/lending_fUST_20250620
["ID","MTS","AMOUNT","RATE_DAILY","PERIOD"]
[366724461,1750419050183,-460.0,0.00021245,2]
[366724462,1750419050193,-460.0,0.00021245,2]
[366724463,1750419050203,-460.0,0.00021245,2]
[366724464,1750419050213,-460.0,0.00021245,2]
[366724465,1750419050223,-1300.03,0.00021245,2]
[366724466,1750419050232,-460.0,0.00021245,2]
[366724467,1750419050242,-460.0,0.00021245,2]
[366724468,1750419050252,-460.0,0.00021245,2]
[366724469,1750419050261,-151.0,0.00021245,2]
[366724470,1750419050271,-151.0,0.00021245,2]
[366724471,1750419050280,-569.12,0.00021245,2]
[366724472,1750419050295,-153.545801,0.00021245,2]
[366724473,1750419050305,-460.0,0.00021245,2]
[366724474,1750419050314,-746.89,0.00021245,2]
[366724475,1750419050323,-460.0,0.00021245,2]
[366724476,1750419050333,-460.0,0.00021245,2]
[366724477,1750419050342,-560.14560076,0.00021245,2]
[366724478,1750419050352,-460.0,0.00021245,2]
[366724479,1750419050361,-460.0,0.00021245,2]
[366724480,1750419050371,-460.0,0.00021245,2]
[366724481,1750419050380,-460.0,0.00021245,2]
[366724482,1750419050390,-460.0,0.00021245,2]
[366724483,1750419050399,-460.0,0.00021245,2]
[366724484,1750419050409,-460.0,0.00021245,2]
[366724485,1750419050419,-460.0,0.00021245,2]
[366724486,1750419050428,-418.81626381,0.00021245,2]
[366724487,1750419050437,-460.0,0.00021245,2]
[366724488,1750419050447,-460.0,0.00021245,2]
[366724489,1750419050457,-549.11,0.00021245,2]
[366724490,1750419050466,-1510.46,0.00021245,2]
[366724491,1750419050476,-1293.27,0.00021245,2]
[366724492,1750419050485,-460.0,0.00021245,2]
[366724493,1750419050495,-460.0,0.00021245,2]
[366724494,1750419050505,-460.0,0.00021245,2]
[366724495,1750419050515,-1387.05,0.00021245,2]
[366724496,1750419050525,-460.0,0.00021245,2]
[366724497,1750419050535,-460.0,0.00021245,2]
[366724498,1750419050544,-460.0,0.00021245,2]
[366724499,1750419050554,-459.85499281,0.00021245,2]
[366724500,1750419050564,-460.0,0.00021245,2]
[366724501,1750419050573,-572.37,0.00021245,2]
[366724502,1750419050583,-224.312279,0.00021245,2]
[366724503,1750419050593,-460.0,0.00021245,2]
[366724504,1750419050603,-460.0,0.00021245,2]
[366724505,1750419050613,-490.15,0.00021245,2]
[366724506,1750419050622,-460.0,0.00021245,2]
[366724507,1750419050632,-460.0,0.00021245,2]
[366724508,1750419050641,-460.0,0.00021245,2]
[366724509,1750419050651,-460.0,0.00021245,2]
[366724510,1750419050661,-460.0,0.00021245,2]
[366724511,1750419050670,-1107.65,0.00021245,2]
[366724512,1750419050679,-460.0,0.00021245,2]
[366724513,1750419050688,-460.0,0.00021245,2]
[366724514,1750419050698,-460.0,0.00021245,2]
[366724515,1750419050707,-460.0,0.00021245,2]
[366724516,1750419050717,-460.0,0.00021245,2]
[366724517,1750419050727,-1201.66,0.00021245,2]
[366724518,1750419050737,-330.68316063,0.00021245,2]
[366724519,1750419050747,-436.77784811,0.00021245,2]
[366724520,1750419050757,-460.0,0.00021245,2]
[366724521,1750419050767,-460.0,0.00021245,2]
[366724522,1750419050776,-460.0,0.00021245,2]
[366724523,1750419050786,-460.0,0.00021245,2]
[366724524,1750419050796,-151.0,0.00021245,2]
[366724525,1750419050806,-151.0,0.00021245,2]
[366724526,1750419050815,-1017.26,0.00021245,2]
[366724527,1750419050825,-151.0,0.00021245,2]
[366724528,1750419050835,-460.0,0.00021245,2]
[366724529,1750419050975,-460.0,0.0002126,2]
[366724530,1750419050985,-151.0,0.0002126,2]
[366724531,1750419050995,-151.0,0.0002126,2]
[366724532,1750419051005,-161.21898,0.0002126,2]
[366724533,1750419051015,-151.0,0.0002126,2]
[366724534,1750419051024,-471.85362121,0.0002126,2]
[366724535,1750419051034,-151.0,0.0002126,2]
[366724536,1750419051044,-460.0,0.0002126,2]
[366724537,1750419051054,-151.0,0.0002126,2]
[366724538,1750419051064,-151.0,0.0002126,2]
[366724539,1750419051073,-151.0,0.0002126,2]
[366724540,1750419051083,-162.175104,0.0002126,2]
[366724541,1750419051093,-151.0,0.0002126,2]
[366724542,1750419051103,-151.0,0.0002126,2]
[366724543,1750419051113,-154.41147,0.0002126,2]
[366724544,1750419051122,-151.0,0.0002126,2]
[366724545,1750419051132,-151.0,0.0002126,2]
[366724546,1750419051142,-6532.119199,0.0002126,2]
[366724547,1750419051153,-484.459408,0.0002126,2]
[366724548,1750419051163,-484.459408,0.0002126,2]
[366724549,1750419051173,-352.602064,0.0002126,2]
[366724550,1750419051183,-352.602064,0.0002126,2]
[366724551,1750419051194,-381.914138,0.0002126,2]
[366724552,1750419051204,-381.914138,0.0002126,2]
[366724553,1750419051214,-316.34147,0.0002126,2]
[366724554,1750419051224,-316.34147,0.0002126,2]
[366724555,1750419051234,-247.561076,0.0002126,2]
[366724556,1750419051243,-247.561076,0.0002126,2]
[366724557,1750419051253,-269.533526,0.00021262,2]
[366724558,1750419051263,-269.533526,0.00021262,2]
[366724559,1750419051273,-500.0,0.00021273,2]
[366724560,1750419051285,-500.0,0.00021273,2]
[366724561,1750419051295,-500.0,0.00021273,2]
[366724562,1750419051305,-500.0,0.00021273,2]
[366724563,1750419051314,-500.0,0.00021273,2]
[366724564,1750419051325,-500.0,0.00021273,2]
[366724565,1750419051335,-500.0,0.00021273,2]
[366724566,1750419051344,-508.6551966,0.00021273,2]
[366724567,1750419051354,-502.25914762,0.00021273,2]
[366724568,1750419051365,-568.44309795,0.00021273,2]
[366724569,1750419051375,-500.0,0.00021273,2]
[366724570,1750419051385,-500.0,0.00021273,2]
[366724571,1750419051395,-500.0,0.00021273,2]
[366724572,1750419051405,-507.76649316,0.00021273,2]
[366724573,1750419051415,-510.02014759,0.00021273,2]
[366724574,1750419051425,-500.0,0.00021273,2]
[366724575,1750419051434,-500.0,0.00021273,2]
[366724576,1750419051444,-500.0,0.00021273,2]
[366724577,1750419051454,-500.0,0.00021273,2]
[366724578,1750419051465,-500.0,0.00021273,2]
[366724579,1750419051475,-151.0,0.00021273,2]
[366724580,1750419051486,-168.0,0.00021313,2]
[366724581,1750419051496,-168.0,0.00021359,2]
[366724582,1750419051507,-151.0,0.000214,2]
[366724583,1750419051517,-151.0,0.000214,2]
[366724584,1750419051527,-151.450041,0.000214,2]
[366724585,1750419051536,-151.450041,0.000214,2]
[366724586,1750419051545,-151.0,0.000214,2]
[366724587,1750419051555,-1343.8958962,0.000214,5]
[366724588,1750419051564,-1343.89589613,0.000214,5]
[366724589,1750419051574,-1343.89589613,0.000214,5]
[366724590,1750419051584,-1343.89589613,0.00021417,5]
[366724591,1750419051595,-160.0,0.00021438,2]
[366724592,1750419051606,-12546.90244252,0.00021438,2]
[366724593,1750419051615,-160.0,0.00021438,2]
[366724594,1750419051625,-160.0,0.00021438,2]
[366724595,1750419051635,-213.51557418,0.00021438,2]
[366724596,1750419051645,-1161.0412277,0.00021453,2]
[366724597,1750419051654,-160.0,0.00021469,2]
[366724598,1750419051664,-160.0,0.00021469,2]
[366724599,1750419051674,-168.0,0.00021485,2]
[366724600,1750419051683,-32649.06241009,0.00021518,2]
[366724601,1750419053260,-250.91894929,0.00020348,2]
[366724603,1750419056980,1730.19204828,0.000201,2]
[366724604,1750419057006,3269.80795172,0.000201,2]
[366724605,1750419058043,-197.88776882,0.00020348,2]
[366724606,1750419063505,-160.0,0.00020347,2]
[366724607,1750419063898,205.75524289,0.00020027,2]
[366724608,1750419072523,5000.0,0.000201,2]
[366724609,1750419073150,-140.0,0.00020347,2]
[366724610,1750419073173,-60.0,0.00020347,2]
[366724612,1750419088610,2024.43680539,0.000201,2]
[366724613,1750419088634,2975.56319461,0.000201,2]
[366724614,1750419103873,5000.0,0.000201,2]
[366724618,1750419114051,201.43681089,0.00020027,2]
[366724619,1750419114639,-200.0,0.00020347,2]
[366724620,1750419119928,2322.9999945,0.000201,2]
[366724621,1750419119961,2677.0000055,0.000201,2]
[366724622,1750419123672,-208.88234658,0.00020347,2]
[366724624,1750419135275,5000.0,0.000201,2]
[366724625,1750419135840,-91.11765342,0.00020347,2]
[366724626,1750419135863,-326.14979208,0.00020348,2]
[366724627,1750419137858,202.6993805,0.00019977,2]
[366724628,1750419151238,2620.300614,0.000201,2]
[366724629,1750419151264,1723.11912775,0.000201,2]
[366724630,1750419161295,-176.0325545,0.00020347,2]
[366724631,1750419166758,5000.0,0.000201,2]
[366724632,1750419182091,349.75907662,0.000201,2]
[366724633,1750419184056,-187.63977482,0.00020346,2]
[366724634,1750419199889,187.63977482,0.000201,2]
[366724635,1750419242464,-157.74935064,0.00020347,2]
[366724636,1750419278864,157.617397,0.00019737,2]
[366724637,1750419279229,264.72795371,0.00019738,2]
[366724638,1750419303093,2817.1366701,0.00019,2]
[366724639,1750419303126,22428.26781017,0.00019,2]
[366724640,1750419303759,-189.0,0.00020346,2]
[366724641,1750419306298,478.23588436,0.00019145,2]
[366724642,1750419306916,-111.0,0.00020346,2]
[366724643,1750419306941,-47.25,0.00020346,2]
[366724644,1750419320151,158.25,0.0002,2]
[366724645,1750419324711,318.82392291,0.00019145,2]
[366724648,1750419362717,-164.71053958,0.00020346,2]
[366724652,1750419379749,164.71053958,0.0002,2]
[366724653,1750419398587,-88.03946042,0.00020346,2]
[366724654,1750419398613,-70.79876374,0.00020346,2]
[366724655,1750419410296,158.83822416,0.0002,2]
[366724666,1750419554205,165.9966585,0.00019745,2]
[366724667,1750419570840,1060.0,0.0002,2]
[366724668,1750419580494,177.65937,0.00019735,2]
[366724669,1750419581039,161.36882693,0.00019738,2]
[366724670,1750419607740,212.54928194,0.00019145,2]
[366724671,1750419609230,197.8877688,0.00019478,2]
[366724672,1750419612785,206.7336421,0.00019478,2]
[366724674,1750419626161,150.0,0.00019145,2]
[366724675,1750419639183,24900.0,0.00019478,2]
[366724679,1750419719014,167.022384,0.00019478,2]
[366724680,1750419719421,167.022384,0.00019527,2]
[366724681,1750419719636,167.022384,0.00019576,2]
[366724683,1750419765698,163.54,0.0002,10]
[366724684,1750419780367,850.01026891,0.00025108,60]
[366724685,1750419801446,184.060435,0.00019442,2]
[366724686,1750419832093,205.1564275,0.00019442,2]
[366724691,1750419909574,150.0,0.00019145,2]
[366724694,1750419931779,198.377676,0.00013699,2]
[366724695,1750419932393,-182.4150196,0.00020187,2]
[366724699,1750419947543,182.4150196,0.0002,2]
[366724700,1750419959481,-15.9626564,0.00020187,2]
[366724701,1750419959503,-144.0373436,0.00020341,2]
[366724708,1750420103664,33130.7434429,0.00019442,2]
[366724709,1750420135527,24577.4031054,0.00019748,2]
[366724810,1750420228206,-280.98251109,0.00020242,2]
[366724811,1750420230348,-196.48708238,0.00020242,2]
[366724826,1750420232496,-561.54138305,0.00020242,2]
[366724827,1750420232506,-300.0,0.00020339,2]
[366724828,1750420232516,-300.0,0.00020339,2]
[366724829,1750420232526,-1200.0,0.00020339,2]
[366724830,1750420232535,-460.0,0.0002034,2]
[366724831,1750420232545,-500.0,0.0002034,2]
[366724832,1750420232555,-500.0,0.0002034,2]
[366724833,1750420232565,-500.0,0.0002034,2]
[366724834,1750420232574,-500.0,0.0002034,2]
[366724835,1750420232584,-500.0,0.0002034,2]
[366724836,1750420232593,-500.0,0.0002034,2]
[366724837,1750420232603,-500.0,0.0002034,2]
[366724838,1750420232612,-500.0,0.0002034,2]
[366724839,1750420232621,-384.11517316,0.0002034,2]
[366724840,1750420232631,-500.0,0.0002034,2]
[366724841,1750420232641,-233.01042434,0.0002034,2]
[366724842,1750420232650,-500.0,0.0002034,2]
[366724843,1750420232659,-500.0,0.0002034,2]
[366724844,1750420232668,-500.0,0.0002034,2]
[366724845,1750420232678,-177.5669595,0.0002034,2]
[366724846,1750420232687,-500.0,0.0002034,2]
[366724847,1750420232697,-500.0,0.0002034,2]
[366724848,1750420232706,-500.0,0.0002034,2]
[366724849,1750420232715,-349.40378954,0.0002034,2]
[366724850,1750420232725,-500.0,0.0002034,2]
[366724851,1750420232734,-500.0,0.0002034,2]
[366724852,1750420232744,-500.0,0.0002034,2]
[366724853,1750420232754,-500.0,0.0002034,2]
[366724854,1750420232763,-500.0,0.0002034,2]
[366724855,1750420232773,-500.0,0.0002034,2]
[366724856,1750420232782,-500.0,0.0002034,2]
[366724857,1750420232791,-500.0,0.0002034,2]
[366724858,1750420232801,-500.0,0.0002034,2]
[366724859,1750420232810,-500.0,0.0002034,2]
[366724860,1750420232819,-500.0,0.0002034,2]
[366724861,1750420232829,-500.0,0.0002034,2]
[366724862,1750420232838,-500.0,0.0002034,2]
[366724863,1750420232847,-500.0,0.0002034,2]
[366724864,1750420232859,-500.0,0.0002034,2]
[366724865,1750420232868,-500.0,0.0002034,2]
[366724866,1750420232877,-228.97125162,0.0002034,2]
[366724867,1750420232886,-500.0,0.0002034,2]
[366724868,1750420232895,-500.0,0.0002034,2]
[366724869,1750420232905,-500.0,0.0002034,2]
[366724870,1750420232914,-500.0,0.0002034,2]
[366724871,1750420232923,-500.0,0.0002034,2]
[366724872,1750420232932,-497.61471546,0.0002034,2]
[366724873,1750420232942,-500.0,0.0002034,2]
[366724874,1750420232951,-500.0,0.0002034,2]
[366724875,1750420232960,-500.0,0.0002034,2]
[366724876,1750420232970,-500.0,0.0002034,2]
[366724877,1750420232979,-500.0,0.0002034,2]
[366724878,1750420232988,-300.0,0.00020341,2]
[366724879,1750420232998,-460.0,0.00020341,2]
[366724880,1750420233008,-460.0,0.00020341,2]
[366724881,1750420233018,-354.94312132,0.00020341,2]
[366724882,1750420233027,-460.0,0.00020341,2]
[366724883,1750420233037,-460.0,0.00020341,2]
[366724884,1750420233047,-460.0,0.00020341,2]
[366724885,1750420233056,-460.0,0.00020341,2]
[366724886,1750420233066,-460.0,0.00020341,2]
[366724887,1750420233076,-460.0,0.00020341,2]
[366724888,1750420233086,-460.0,0.00020341,2]
[366724889,1750420233096,-460.0,0.00020341,2]
[366724890,1750420233106,-967.64,0.00020341,2]
[366724891,1750420233116,-460.0,0.00020342,2]
[366724892,1750420233125,-460.0,0.00020342,2]
[366724893,1750420233134,-448.6993871,0.00020342,2]
[366724894,1750420233144,-460.0,0.00020342,2]
[366724895,1750420233153,-460.0,0.00020342,2]
[366724896,1750420233163,-460.0,0.00020342,2]
[366724897,1750420233172,-460.0,0.00020342,2]
[366724898,1750420233181,-410.77352781,0.00020342,2]
[366724899,1750420233191,-460.0,0.00020342,2]
[366724900,1750420233200,-460.0,0.00020342,2]
[366724901,1750420233210,-460.0,0.00020342,2]
[366724902,1750420233219,-460.0,0.00020342,2]
[366724903,1750420233229,-460.0,0.00020342,2]
[366724904,1750420233239,-460.0,0.00020342,2]
[366724905,1750420233249,-460.0,0.00020342,2]
[366724906,1750420233259,-546.59860463,0.00020342,2]
[366724907,1750420233269,-460.0,0.00020342,2]
[366724908,1750420233279,-460.0,0.00020342,2]
[366724909,1750420233288,-460.0,0.00020342,2]
[366724910,1750420233297,-460.0,0.00020342,2]
[366724911,1750420233307,-460.0,0.00020342,2]
[366724912,1750420233317,-460.0,0.00020342,2]
[366724913,1750420233328,-510.75374426,0.00020342,2]
[366724914,1750420233337,-460.0,0.00020342,2]
[366724915,1750420233347,-465.08686758,0.00020342,2]
[366724916,1750420233357,-460.0,0.00020342,2]
[366724917,1750420233367,-760.29,0.00020342,2]
[366724918,1750420233377,-460.0,0.00020342,2]
[366724919,1750420233387,-430.0,0.00020342,2]
[366724920,1750420233397,-460.0,0.00020342,2]
[366724921,1750420233408,-475.33609645,0.00020342,2]
[366724922,1750420233418,-429.68766922,0.00020342,2]
[366724923,1750420233428,-1445.9,0.00020342,2]
[366724924,1750420233438,-460.0,0.00020342,2]
[366724925,1750420233447,-460.0,0.00020342,2]
[366724926,1750420233457,-460.0,0.00020342,2]
[366724927,1750420233466,-460.0,0.00020342,2]
[366724928,1750420233476,-1379.63,0.00020342,2]
[366724929,1750420233485,-460.0,0.00020342,2]
[366724930,1750420233496,-460.0,0.00020342,2]
[366724931,1750420233506,-460.0,0.00020342,2]
[366724932,1750420233674,-460.0,0.00020342,2]
[366724933,1750420233685,-460.0,0.00020342,2]
[366724934,1750420233695,-460.0,0.00020342,2]
[366724935,1750420233705,-1544.97,0.00020342,2]
[366724936,1750420233716,-460.0,0.00020342,2]
[366724937,1750420233726,-1156.4,0.00020342,2]
[366724938,1750420233736,-460.0,0.00020342,2]
[366724939,1750420233746,-807.0,0.0002049,2]
[366724940,1750420233757,-187.13,0.0002059,2]
[366724941,1750420233767,-460.0,0.00020613,2]
[366724942,1750420233777,-460.0,0.00020615,2]
[366724943,1750420233787,-460.0,0.00020615,2]
[366724944,1750420233797,-433.62210622,0.00020615,2]
[366724945,1750420233808,-384.07300146,0.00020615,2]
[366724946,1750420233817,-460.0,0.00020615,2]
[366724947,1750420233827,-460.0,0.00020615,2]
[366724948,1750420233837,-460.0,0.00020615,2]
[366724949,1750420233847,-967.64,0.00020615,2]
[366724950,1750420233857,-460.0,0.00020616,2]
[366724951,1750420233867,-460.0,0.00020616,2]
[366724952,1750420233877,-460.0,0.00020616,2]
[366724953,1750420233887,-430.0,0.00020616,2]
[366724954,1750420233897,-274.6988548,0.00020616,2]
[366724955,1750420233907,-352.22530489,0.00020616,2]
[366724956,1750420233916,-369.09932442,0.00020616,2]
[366724957,1750420233926,-460.0,0.00020616,2]
[366724958,1750420233935,-460.0,0.00020616,2]
[366724959,1750420233945,-460.0,0.00020616,2]
[366724960,1750420233955,-460.0,0.00020616,2]
[366724961,1750420233965,-430.0,0.00020616,2]
[366724962,1750420233975,-460.0,0.00020616,2]
[366724963,1750420233985,-760.29,0.00020616,2]
[366724964,1750420233996,-460.0,0.00020616,2]
[366724965,1750420234006,-1445.9,0.00020616,2]
[366724966,1750420234016,-347.67671813,0.00020616,2]
[366724967,1750420234026,-460.0,0.00020616,2]
[366724968,1750420234036,-324.42737698,0.00020616,2]
[366724969,1750420234046,-1379.63,0.00020616,2]
[366724970,1750420234056,-460.0,0.00020616,2]
[366724971,1750420234066,-460.0,0.00020616,2]
[366724972,1750420234077,-460.0,0.00020616,2]
[366724973,1750420234087,-460.0,0.00020616,2]
[366724974,1750420234097,-460.0,0.00020616,2]
[366724975,1750420234107,-460.0,0.00020616,2]
[366724976,1750420234117,-1544.97,0.00020616,2]
[366724977,1750420234127,-460.0,0.00020616,2]
[366724978,1750420234137,-1156.4,0.00020616,2]
[366724979,1750420234147,-482.08158654,0.00020616,2]
[366724980,1750420234157,-807.0,0.00020626,2]
[366724981,1750420234167,-807.0,0.00020705,2]
[366724982,1750420234177,-807.0,0.00020816,2]
[366724983,1750420234190,-461.74873554,0.00020844,2]
[366724984,1750420234357,-38.25126446,0.00020844,2]
[366724985,1750420234368,-256.27540202,0.00020887,2]
[366724986,1750420234381,-203.72459798,0.00020887,2]
[366724987,1750420234391,-460.0,0.00020889,2]
[366724988,1750420234400,-380.47540202,0.00020889,2]
[366724989,1750420234413,-59.52459798,0.00020889,2]
[366724990,1750420234423,-460.0,0.00020889,2]
[366724991,1750420234432,-460.0,0.00020889,2]
[366724992,1750420234442,-412.02727555,0.00020889,2]
[366724993,1750420234452,-967.64,0.00020889,2]
[366724994,1750420234462,-460.0,0.0002089,2]
[366724995,1750420234472,-460.0,0.0002089,2]
[366724996,1750420234481,-460.0,0.0002089,2]
[366724997,1750420234491,-460.0,0.0002089,2]
[366724998,1750420234500,-420.0,0.0002089,2]
[366724999,1750420234509,-460.0,0.0002089,2]
[366725000,1750420234519,-460.0,0.0002089,2]
[366725001,1750420234528,-760.29,0.0002089,2]
[366725002,1750420234538,-228.51008309,0.0002089,2]
[366725003,1750420234605,-230.70562783,0.0002034,2]
[366725018,1750420238424,-229.29437217,0.0002034,2]
[366725019,1750420238434,-460.0,0.0002034,2]
[366725020,1750420238443,-460.0,0.00020341,2]
[366725021,1750420238452,-1713.1,0.00020342,2]
[366725022,1750420238462,-420.30720909,0.00020613,2]
[366725023,1750420238472,-460.0,0.00020613,2]
[366725024,1750420238482,-1713.1,0.00020616,2]
[366725025,1750420238492,-231.48991691,0.0002089,2]
[366725026,1750420238502,-1445.9,0.0002089,2]
[366725027,1750420238512,-571.19264051,0.0002089,2]
[366725028,1750420238521,-1379.63,0.0002089,2]
[366725029,1750420238531,-460.0,0.0002089,2]
[366725030,1750420238540,-460.0,0.0002089,2]
[366725031,1750420238550,-460.0,0.0002089,2]
[366725032,1750420238560,-460.0,0.0002089,2]
[366725033,1750420238569,-460.0,0.0002089,2]
[366725034,1750420238579,-1544.97,0.0002089,2]
[366725035,1750420238588,-460.0,0.0002089,2]
[366725036,1750420238598,-1156.4,0.0002089,2]
[366725037,1750420238607,-1713.1,0.0002089,2]
[366725038,1750420238617,-1039.01097648,0.00020923,2]
[366725039,1750420238626,-427.0,0.00020928,2]
[366725040,1750420238636,-807.0,0.00020948,2]
[366725042,1750420238646,-200.0,0.00020966,10]
[366725043,1750420238655,-187.77553994,0.0002097,2]
[366725044,1750420238665,-1063.46487698,0.0002097,2]
[366725045,1750420238675,-1063.46487698,0.0002097,2]
[366725046,1750420238684,-1063.46487698,0.0002097,2]
[366725047,1750420238694,-1063.46487698,0.0002097,2]
[366725048,1750420238704,-1063.46487698,0.0002097,2]
[366725049,1750420238714,-1063.46487698,0.0002097,2]
[366725050,1750420238723,-1063.46487698,0.0002097,2]
[366725051,1750420238733,-1063.46487698,0.0002097,2]
[366725052,1750420238742,-1063.46487698,0.0002097,2]
[366725053,1750420238751,-1063.46487698,0.0002097,2]
[366725054,1750420238762,-1063.46487698,0.0002097,2]
[366725055,1750420238771,-1063.46487698,0.0002097,2]
[366725056,1750420238780,-1063.46487698,0.0002097,2]
[366725057,1750420238790,-1063.46487698,0.0002097,2]
[366725058,1750420238799,-1063.46487698,0.0002097,2]
[366725059,1750420238808,-1063.46487698,0.0002097,2]
[366725060,1750420238819,-1063.46487698,0.0002097,2]
[366725061,1750420238828,-1063.46487698,0.0002097,2]
[366725062,1750420238840,-1063.46487698,0.0002097,2]
[366725063,1750420238850,-1063.46487698,0.0002097,2]
[366725064,1750420238859,-500.0,0.0002097,2]
[366725065,1750420238869,-1222.98460854,0.0002097,2]
[366725066,1750420238878,-1222.98460854,0.0002097,2]
[366725067,1750420238887,-1222.98460854,0.0002097,2]
[366725068,1750420238897,-1222.98460854,0.0002097,2]
[366725069,1750420238906,-1222.98460854,0.0002097,2]
[366725070,1750420238916,-460.0,0.00020971,2]
[366725071,1750420238926,-277.43432044,0.00020971,2]
[366725072,1750420238935,-152.386933,0.00020971,2]
[366725073,1750420238945,-284.63799461,0.00020971,2]
[366725074,1750420238956,-460.0,0.00020971,2]
[366725075,1750420238967,-471.02488236,0.00020971,2]
[366725076,1750420238976,-460.0,0.00020971,2]
[366725077,1750420238986,-459.48480915,0.00020971,2]
[366725078,1750420238995,-432.13181176,0.00020971,2]
[366725079,1750420239005,-460.0,0.00020971,2]
[366725080,1750420239014,-152.106339,0.00020971,2]
[366725081,1750420239023,-460.0,0.00020971,2]
[366725082,1750420239032,-430.0,0.00020971,2]
[366725083,1750420239041,-460.0,0.00020971,2]
[366725084,1750420239051,-460.0,0.00020971,2]
[366725085,1750420239060,-460.0,0.00020971,2]
[366725086,1750420239070,-460.0,0.00020971,2]
[366725087,1750420239079,-460.0,0.00020971,2]
[366725088,1750420239088,-460.0,0.00020971,2]
[366725089,1750420239098,-444.12046204,0.00020971,2]
[366725090,1750420239108,-460.0,0.00020971,2]
[366725091,1750420239119,-460.0,0.00020971,2]
[366725092,1750420239129,-460.0,0.00020971,2]
[366725093,1750420239139,-460.0,0.00020971,2]
[366725094,1750420239149,-460.0,0.00020971,2]
[366725095,1750420239158,-202.61495998,0.00020971,2]
[366725096,1750420239168,-461.07453111,0.00020971,2]
[366725097,1750420239177,-460.0,0.00020971,2]
[366725098,1750420239186,-460.0,0.00020971,2]
[366725099,1750420239196,-460.0,0.00020971,2]
[366725100,1750420239206,-460.0,0.00020971,2]
[366725101,1750420239215,-460.0,0.00020971,2]
[366725102,1750420239224,-400.73896627,0.00020971,2]
[366725103,1750420239233,-460.0,0.00020971,2]
[366725104,1750420239243,-460.0,0.00020971,2]
[366725105,1750420239253,-460.0,0.00020971,2]
[366725106,1750420239262,-460.0,0.00020971,2]
[366725107,1750420239272,-460.0,0.00020971,2]
[366725108,1750420239282,-424.73128863,0.00020971,2]
[366725109,1750420239291,-460.0,0.00020971,2]
[366725110,1750420239300,-460.0,0.00020971,2]
[366725111,1750420239311,-460.0,0.00020971,2]
[366725112,1750420239320,-460.0,0.00020971,2]
[366725113,1750420239330,-403.35501149,0.00020971,2]
[366725114,1750420239341,-300.0,0.00020971,2]
[366725115,1750420239350,-444.83282733,0.00020971,2]
[366725116,1750420239360,-444.07707778,0.00020971,2]
[366725117,1750420239370,-460.0,0.00020971,2]
[366725118,1750420239379,-434.63762195,0.00020971,2]
[366725119,1750420239389,-460.0,0.00020971,2]
[366725120,1750420239398,-410.14031583,0.00020971,2]
[366725121,1750420239407,-460.0,0.00020971,2]
[366725122,1750420239417,-460.0,0.00020971,2]
[366725123,1750420239426,-460.0,0.00020971,2]
[366725124,1750420239436,-432.98073997,0.00020971,2]
[366725125,1750420239445,-460.0,0.00020971,2]
[366725126,1750420239455,-420.0,0.00020971,2]
[366725127,1750420239464,-460.0,0.00020971,2]
[366725128,1750420239474,-410.0,0.00020971,2]
[366725129,1750420239484,-460.0,0.00020971,2]
[366725130,1750420239494,-460.0,0.00020971,2]